[Event "Late-Titled-Tuesday-Blitz-May-28-2024"]
[Site "Chess.com"]
[Date "2024.05.28"]
[Round "8"]
[White "manitodeplomo"]
[Black "dozer80"]
[Result "0-1"]
[WhiteElo "2532"]
[BlackElo "2693"]
[TimeControl "180+1"]
[EndTime "15:28:59 PDT"]
[Termination "dozer80 won on time"]

1. d4 {[%clk 0:03:00.9]} 1... Nf6 {[%clk 0:02:59.4]} 2. c4 {[%clk 0:03:00.8]}
2... e6 {[%clk 0:02:59.7]} 3. Nf3 {[%clk 0:03:00.7]} 3... Bb4+ {[%clk
0:02:58.7]} 4. Bd2 {[%clk 0:03:00.2]} 4... c5 {[%clk 0:02:57.9]} 5. Bxb4 {[%clk
0:02:59.4]} 5... cxb4 {[%clk 0:02:58.8]} 6. Qd3 {[%clk 0:02:59.8]} 6... O-O
{[%clk 0:02:57.2]} 7. Nbd2 {[%clk 0:02:58.3]} 7... a5 {[%clk 0:02:57]} 8. e4
{[%clk 0:02:54.9]} 8... d6 {[%clk 0:02:56.9]} 9. Be2 {[%clk 0:02:54]} 9... Nc6
{[%clk 0:02:49.8]} 10. O-O {[%clk 0:02:53.9]} 10... e5 {[%clk 0:02:49.8]} 11. h3
{[%clk 0:02:44.7]} 11... Nd7 {[%clk 0:02:44.7]} 12. Rfe1 {[%clk 0:02:42.6]}
12... Qf6 {[%clk 0:02:39.2]} 13. d5 {[%clk 0:02:17.9]} 13... Nc5 {[%clk
0:02:38.2]} 14. Qe3 {[%clk 0:02:15.8]} 14... Nb8 {[%clk 0:02:36.4]} 15. a3
{[%clk 0:01:59]} 15... Nba6 {[%clk 0:02:36.3]} 16. axb4 {[%clk 0:01:49.8]} 16...
Nxb4 {[%clk 0:02:34.6]} 17. Rec1 {[%clk 0:01:40]} 17... Bd7 {[%clk 0:02:19]} 18.
Nb3 {[%clk 0:01:34.6]} 18... Nxb3 {[%clk 0:02:16.3]} 19. Qxb3 {[%clk 0:01:33.9]}
19... b6 {[%clk 0:02:16.7]} 20. Qe3 {[%clk 0:01:30.6]} 20... Rfb8 {[%clk
0:02:10.1]} 21. Bd1 {[%clk 0:01:29]} 21... Na6 {[%clk 0:02:04.7]} 22. Ba4 {[%clk
0:01:26.6]} 22... Bxa4 {[%clk 0:02:03.4]} 23. Rxa4 {[%clk 0:01:27]} 23... Nc5
{[%clk 0:02:03.4]} 24. Ra3 {[%clk 0:01:26.9]} 24... h6 {[%clk 0:01:58.6]} 25.
Rca1 {[%clk 0:01:26.2]} 25... Qd8 {[%clk 0:01:56]} 26. Nd2 {[%clk 0:01:21.3]}
26... b5 {[%clk 0:01:26.8]} 27. cxb5 {[%clk 0:01:08.7]} 27... Rxb5 {[%clk
0:01:27.7]} 28. Nc4 {[%clk 0:01:08.1]} 28... a4 {[%clk 0:01:26.8]} 29. Rc3
{[%clk 0:00:53.1]} 29... Nb3 {[%clk 0:01:22.9]} 30. Rd1 {[%clk 0:00:43.7]} 30...
Rb4 {[%clk 0:01:09.2]} 31. Rdd3 {[%clk 0:00:23.3]} 31... Nd4 {[%clk 0:00:46.9]}
32. Rxd4 {[%clk 0:00:20.3]} 32... exd4 {[%clk 0:00:47.8]} 33. Qxd4 {[%clk
0:00:20.9]} 33... Rc8 {[%clk 0:00:46.2]} 34. Qd3 {[%clk 0:00:12.2]} 34... Rc5
{[%clk 0:00:38.5]} 35. e5 {[%clk 0:00:10.9]} 35... dxe5 {[%clk 0:00:38.3]} 36.
d6 {[%clk 0:00:11.6]} 36... Rc6 {[%clk 0:00:28.3]} 37. Qd5 {[%clk 0:00:10.6]}
37... Rc8 {[%clk 0:00:14]} 38. Nxe5 {[%clk 0:00:10.3]} 38... Rxc3 {[%clk
0:00:13.7]} 39. Qxf7+ {[%clk 0:00:10.6]} 39... Kh7 {[%clk 0:00:13.2]} 40. Qf5+
{[%clk 0:00:10.1]} 40... Kg8 {[%clk 0:00:12.5]} 41. Qf7+ {[%clk 0:00:10.1]}
41... Kh8 {[%clk 0:00:12.8]} 42. bxc3 {[%clk 0:00:05.9]} 42... Rb1+ {[%clk
0:00:12.1]} 43. Kh2 {[%clk 0:00:05.8]} 43... Qxd6 {[%clk 0:00:12.4]} 44. Qf5
{[%clk 0:00:00.6]} 44... Re1 {[%clk 0:00:09.8]} 45. f4 {[%clk 0:00:01.1]} 45...
Qf6 {[%clk 0:00:07.6]} 46. Qc8+ {[%clk 0:00:01]} 46... Kh7 {[%clk 0:00:07.6]}
0-1

[Event "Late-Titled-Tuesday-Blitz-May-28-2024"]
[Site "Chess.com"]
[Date "2024.05.28"]
[Round "8"]
[White "Abduzhaparov"]
[Black "nindjaxx8"]
[Result "1-0"]
[WhiteElo "2510"]
[BlackElo "2621"]
[TimeControl "180+1"]
[EndTime "15:29:00 PDT"]
[Termination "Abduzhaparov won by checkmate"]

1. Nf3 {[%clk 0:03:00.9]} 1... d5 {[%clk 0:02:58.7]} 2. c4 {[%clk 0:03:01.8]}
2... e6 {[%clk 0:02:58]} 3. g3 {[%clk 0:03:01.4]} 3... Nf6 {[%clk 0:02:58]} 4.
Bg2 {[%clk 0:03:02.3]} 4... Be7 {[%clk 0:02:57.8]} 5. d4 {[%clk 0:03:02.5]} 5...
O-O {[%clk 0:02:57.6]} 6. Qc2 {[%clk 0:03:02.8]} 6... b6 {[%clk 0:02:56.2]} 7.
O-O {[%clk 0:03:01.4]} 7... Bb7 {[%clk 0:02:56.2]} 8. Rd1 {[%clk 0:03:01.1]}
8... Nbd7 {[%clk 0:02:54.9]} 9. Bf4 {[%clk 0:02:59.9]} 9... Rc8 {[%clk
0:02:54.1]} 10. Nc3 {[%clk 0:02:58.2]} 10... a6 {[%clk 0:02:49.9]} 11. Ne5
{[%clk 0:02:47.6]} 11... Qe8 {[%clk 0:02:41.1]} 12. e4 {[%clk 0:02:41.2]} 12...
dxe4 {[%clk 0:02:37.5]} 13. Nxe4 {[%clk 0:02:38.1]} 13... Nxe4 {[%clk
0:02:37.6]} 14. Bxe4 {[%clk 0:02:36]} 14... Bxe4 {[%clk 0:02:38.5]} 15. Qxe4
{[%clk 0:02:36.4]} 15... Nf6 {[%clk 0:02:01.5]} 16. Qc6 {[%clk 0:02:35.5]} 16...
Bd6 {[%clk 0:02:00.1]} 17. Rac1 {[%clk 0:02:15.6]} 17... Qxc6 {[%clk 0:01:49.4]}
18. Nxc6 {[%clk 0:02:16.5]} 18... Bxf4 {[%clk 0:01:49.6]} 19. gxf4 {[%clk
0:02:16.2]} 19... Rfe8 {[%clk 0:01:50]} 20. d5 {[%clk 0:02:12.8]} 20... exd5
{[%clk 0:01:46.7]} 21. cxd5 {[%clk 0:02:13.7]} 21... Kf8 {[%clk 0:01:20.7]} 22.
Rc3 {[%clk 0:01:50.7]} 22... g6 {[%clk 0:01:06.4]} 23. Ra3 {[%clk 0:01:49.4]}
23... a5 {[%clk 0:01:05.2]} 24. Rc3 {[%clk 0:01:43]} 24... Re4 {[%clk
0:00:57.6]} 25. Ne5 {[%clk 0:01:16]} 25... Rxf4 {[%clk 0:00:08.5]} 26. d6 {[%clk
0:01:15.8]} 26... c5 {[%clk 0:00:05.2]} 27. Rb3 {[%clk 0:01:14.3]} 27... Rd8
{[%clk 0:00:05]} 28. Rxb6 {[%clk 0:01:10.9]} 28... Rf5 {[%clk 0:00:05]} 29. Nc4
{[%clk 0:01:00.6]} 29... Ne4 {[%clk 0:00:04]} 30. Nxa5 {[%clk 0:00:49.1]} 30...
Nxf2 {[%clk 0:00:03.5]} 31. Rf1 {[%clk 0:00:40.8]} 31... Nh3+ {[%clk 0:00:03.5]}
32. Kg2 {[%clk 0:00:41.2]} 32... Nf4+ {[%clk 0:00:04.2]} 33. Kh1 {[%clk
0:00:41.2]} 33... Ne6 {[%clk 0:00:02.4]} 34. Rxf5 {[%clk 0:00:39.9]} 34... gxf5
{[%clk 0:00:03.3]} 35. Nb7 {[%clk 0:00:32.8]} 35... Rd7 {[%clk 0:00:03.1]} 36.
a4 {[%clk 0:00:33]} 36... Nd8 {[%clk 0:00:01.8]} 37. Nxc5 {[%clk 0:00:30.3]}
37... Ra7 {[%clk 0:00:01.3]} 38. Rb8 {[%clk 0:00:22.8]} 38... Ke8 {[%clk
0:00:01.7]} 39. a5 {[%clk 0:00:23.3]} 39... f6 {[%clk 0:00:02.2]} 40. a6 {[%clk
0:00:21.7]} 40... f4 {[%clk 0:00:01.8]} 41. Nb7 {[%clk 0:00:20.7]} 41... Rxa6
{[%clk 0:00:01.2]} 42. Rxd8+ {[%clk 0:00:19.6]} 42... Kf7 {[%clk 0:00:02.1]} 43.
Rd7+ {[%clk 0:00:16.8]} 43... Ke6 {[%clk 0:00:02.2]} 44. Nc5+ {[%clk 0:00:16.1]}
44... Kf5 {[%clk 0:00:01.8]} 45. Nxa6 {[%clk 0:00:17]} 45... f3 {[%clk
0:00:02.1]} 46. Re7 {[%clk 0:00:15.9]} 46... f2 {[%clk 0:00:02.7]} 47. Kg2
{[%clk 0:00:16.2]} 47... Kf4 {[%clk 0:00:02]} 48. Kxf2 {[%clk 0:00:15.9]} 48...
Kg5 {[%clk 0:00:02.9]} 49. d7 {[%clk 0:00:16]} 49... Kf5 {[%clk 0:00:03.8]} 50.
d8=Q {[%clk 0:00:16.8]} 50... Kg5 {[%clk 0:00:04.7]} 51. Qg8+ {[%clk 0:00:16.1]}
51... Kf5 {[%clk 0:00:05.6]} 52. Qe6+ {[%clk 0:00:15.5]} 52... Kg5 {[%clk
0:00:06.5]} 53. Rg7+ {[%clk 0:00:15.4]} 53... Kh5 {[%clk 0:00:06]} 54. Qf5+
{[%clk 0:00:15]} 54... Kh6 {[%clk 0:00:05.4]} 55. Rxh7# {[%clk 0:00:15.7]} 1-0

[Event "Late-Titled-Tuesday-Blitz-May-28-2024"]
[Site "Chess.com"]
[Date "2024.05.28"]
[Round "8"]
[White "NajdorfPlayerc5"]
[Black "SHIVACalypso"]
[Result "1-0"]
[WhiteElo "2457"]
[BlackElo "2535"]
[TimeControl "180+1"]
[EndTime "15:29:00 PDT"]
[Termination "NajdorfPlayerc5 won by checkmate"]

1. e4 {[%clk 0:03:00.9]} 1... c5 {[%clk 0:03:00.1]} 2. Nf3 {[%clk 0:03:00.7]}
2... d6 {[%clk 0:02:55.1]} 3. c3 {[%clk 0:02:57.8]} 3... g6 {[%clk 0:02:45.4]}
4. d4 {[%clk 0:02:55.1]} 4... Nd7 {[%clk 0:02:45]} 5. Bc4 {[%clk 0:02:51.6]}
5... Nb6 {[%clk 0:02:33.5]} 6. dxc5 {[%clk 0:02:37.8]} 6... Nxc4 {[%clk
0:02:30.1]} 7. Qa4+ {[%clk 0:02:37.2]} 7... Bd7 {[%clk 0:02:27.7]} 8. Qxc4
{[%clk 0:02:36.6]} 8... Rc8 {[%clk 0:02:28.2]} 9. Qd4 {[%clk 0:02:23.8]} 9... e5
{[%clk 0:02:17.6]} 10. Nxe5 {[%clk 0:02:17.7]} 10... Bg7 {[%clk 0:02:16.4]} 11.
Qxd6 {[%clk 0:02:16.7]} 11... Nf6 {[%clk 0:01:55.2]} 12. Nxd7 {[%clk 0:01:42.4]}
12... Nxd7 {[%clk 0:01:50.9]} 13. Be3 {[%clk 0:01:41.2]} 13... Rc6 {[%clk
0:01:47.4]} 14. Qd5 {[%clk 0:01:36.8]} 14... O-O {[%clk 0:01:45.6]} 15. O-O
{[%clk 0:01:36.5]} 15... Qc8 {[%clk 0:01:38.7]} 16. Na3 {[%clk 0:01:14.5]} 16...
Nxc5 {[%clk 0:01:35.6]} 17. Bxc5 {[%clk 0:01:13.2]} 17... Rxc5 {[%clk
0:01:36.5]} 18. Qd3 {[%clk 0:01:13]} 18... Rd8 {[%clk 0:01:35.3]} 19. Qe2 {[%clk
0:01:12.8]} 19... Qc7 {[%clk 0:01:25.1]} 20. Rfd1 {[%clk 0:00:54.1]} 20... Re8
{[%clk 0:01:24.5]} 21. f3 {[%clk 0:00:27.6]} 21... h5 {[%clk 0:00:58.4]} 22. Rd3
{[%clk 0:00:18.7]} 22... h4 {[%clk 0:00:57.7]} 23. Rad1 {[%clk 0:00:18]} 23...
h3 {[%clk 0:00:56.8]} 24. g3 {[%clk 0:00:18.3]} 24... Qe5 {[%clk 0:00:48.3]} 25.
Nc2 {[%clk 0:00:16.1]} 25... Kh7 {[%clk 0:00:42.6]} 26. Ne3 {[%clk 0:00:14.2]}
26... f5 {[%clk 0:00:38.2]} 27. Rd5 {[%clk 0:00:13.8]} 27... Rxd5 {[%clk
0:00:34.9]} 28. Rxd5 {[%clk 0:00:13.6]} 28... Qe6 {[%clk 0:00:35.5]} 29. Rd1
{[%clk 0:00:01.4]} 29... fxe4 {[%clk 0:00:34.8]} 30. f4 {[%clk 0:00:01.5]} 30...
Qb6 {[%clk 0:00:31.9]} 31. Re1 {[%clk 0:00:01.5]} 31... Rd8 {[%clk 0:00:30.4]}
32. Qf1 {[%clk 0:00:01.8]} 32... Rd3 {[%clk 0:00:29.9]} 33. Qxh3+ {[%clk
0:00:01.9]} 33... Kg8 {[%clk 0:00:28.2]} 34. Qe6+ {[%clk 0:00:02]} 34... Kh8
{[%clk 0:00:26.6]} 35. Qxe4 {[%clk 0:00:02.9]} 35... Rd2 {[%clk 0:00:24.3]} 36.
Qe8+ {[%clk 0:00:02.6]} 36... Kh7 {[%clk 0:00:24.2]} 37. Qe4 {[%clk 0:00:02.1]}
37... Qxb2 {[%clk 0:00:21.9]} 38. h4 {[%clk 0:00:02.1]} 38... Rh2 {[%clk
0:00:21.5]} 39. Qf3 {[%clk 0:00:02.4]} 39... Rh3 {[%clk 0:00:19.8]} 40. Ng4
{[%clk 0:00:01.6]} 40... Bxc3 {[%clk 0:00:17.3]} 41. Re2 {[%clk 0:00:01.6]}
41... Bd4+ {[%clk 0:00:17.3]} 42. Kg2 {[%clk 0:00:01.5]} 42... Qa1 {[%clk
0:00:11.4]} 43. Kxh3 {[%clk 0:00:01.8]} 43... Qg1 {[%clk 0:00:11.9]} 44. Re7+
{[%clk 0:00:01.8]} 44... Kg8 {[%clk 0:00:11.6]} 45. Qd5+ {[%clk 0:00:02]} 45...
Kf8 {[%clk 0:00:10.7]} 46. Qd8# {[%clk 0:00:02.3]} 1-0

[Event "Late-Titled-Tuesday-Blitz-May-28-2024"]
[Site "Chess.com"]
[Date "2024.05.28"]
[Round "8"]
[White "attack2mateU"]
[Black "Magicmaster17"]
[Result "1-0"]
[WhiteElo "2710"]
[BlackElo "2869"]
[TimeControl "180+1"]
[EndTime "15:29:01 PDT"]
[Termination "attack2mateU won on time"]

1. e4 {[%clk 0:03:00.9]} 1... e5 {[%clk 0:02:59]} 2. Nf3 {[%clk 0:03:01.1]} 2...
Nc6 {[%clk 0:02:58.3]} 3. Bc4 {[%clk 0:03:01.6]} 3... Nf6 {[%clk 0:02:57.4]} 4.
d3 {[%clk 0:03:01.7]} 4... Be7 {[%clk 0:02:56.8]} 5. O-O {[%clk 0:03:02.1]} 5...
O-O {[%clk 0:02:57.4]} 6. Re1 {[%clk 0:03:02.4]} 6... d6 {[%clk 0:02:58]} 7. a4
{[%clk 0:03:02.8]} 7... h6 {[%clk 0:02:57.5]} 8. Nbd2 {[%clk 0:03:01.6]} 8...
Re8 {[%clk 0:02:57.2]} 9. c3 {[%clk 0:02:57.5]} 9... Bf8 {[%clk 0:02:57.2]} 10.
b4 {[%clk 0:02:56.6]} 10... Be6 {[%clk 0:02:54.4]} 11. Bxe6 {[%clk 0:02:54]}
11... Rxe6 {[%clk 0:02:54.3]} 12. Qc2 {[%clk 0:02:50.1]} 12... d5 {[%clk
0:02:50.7]} 13. b5 {[%clk 0:02:44.1]} 13... Ne7 {[%clk 0:02:50.5]} 14. exd5
{[%clk 0:02:39.5]} 14... Nexd5 {[%clk 0:02:05]} 15. Rxe5 {[%clk 0:02:29.4]}
15... Rxe5 {[%clk 0:01:42.2]} 16. Nxe5 {[%clk 0:02:30.3]} 16... a6 {[%clk
0:01:25.6]} 17. Bb2 {[%clk 0:02:10.8]} 17... axb5 {[%clk 0:01:25.1]} 18. axb5
{[%clk 0:02:10.7]} 18... Rxa1+ {[%clk 0:01:25.3]} 19. Bxa1 {[%clk 0:02:11.6]}
19... Qe8 {[%clk 0:01:25.8]} 20. c4 {[%clk 0:02:12.2]} 20... Nb4 {[%clk
0:01:24.8]} 21. Qc3 {[%clk 0:01:59.7]} 21... Nh5 {[%clk 0:01:08.1]} 22. g3
{[%clk 0:01:52.9]} 22... f6 {[%clk 0:00:56.1]} 23. Nef3 {[%clk 0:01:52.6]} 23...
Qe2 {[%clk 0:00:56.8]} 24. c5 {[%clk 0:01:16.7]} 24... Nxd3 {[%clk 0:00:43.7]}
25. Qc4+ {[%clk 0:01:17.2]} 25... Kh7 {[%clk 0:00:39.8]} 26. Bd4 {[%clk
0:01:17.8]} 26... Qd1+ {[%clk 0:00:13.3]} 27. Kg2 {[%clk 0:01:17.9]} 27... Nhf4+
{[%clk 0:00:12.7]} 28. gxf4 {[%clk 0:01:16]} 28... Nxf4+ {[%clk 0:00:13.6]} 29.
Kg3 {[%clk 0:01:16]} 29... Nh5+ {[%clk 0:00:12.1]} 30. Kg4 {[%clk 0:01:09.4]}
30... g6 {[%clk 0:00:12]} 31. Be3 {[%clk 0:00:38.5]} 31... f5+ {[%clk
0:00:10.8]} 32. Kh3 {[%clk 0:00:39.1]} 32... Bg7 {[%clk 0:00:02.6]} 33. Kg2
{[%clk 0:00:37]} 33... Qa1 {[%clk 0:00:01]} 34. Bd4 {[%clk 0:00:36.4]} 34...
Nf4+ {[%clk 0:00:01]} 35. Kg3 {[%clk 0:00:34.4]} 35... Nh5+ {[%clk 0:00:01.2]}
36. Kh4 {[%clk 0:00:27.7]} 36... Qd1 {[%clk 0:00:01]} 37. Bxg7 {[%clk
0:00:24.9]} 37... Nxg7 {[%clk 0:00:01.9]} 38. Qf7 {[%clk 0:00:14.7]} 38... g5+
{[%clk 0:00:02.2]} 39. Kg3 {[%clk 0:00:14.6]} 39... Qe2 {[%clk 0:00:01.7]} 40.
Kg2 {[%clk 0:00:14.8]} 40... g4 {[%clk 0:00:01.3]} 41. Qxc7 {[%clk 0:00:10.5]}
41... gxf3+ {[%clk 0:00:01.7]} 42. Nxf3 {[%clk 0:00:11.4]} 42... Qe4 {[%clk
0:00:02]} 43. h3 {[%clk 0:00:07.9]} 43... Kg6 {[%clk 0:00:01.3]} 44. c6 {[%clk
0:00:08]} 44... Ne6 {[%clk 0:00:01.7]} 45. Qd6 {[%clk 0:00:07.5]} 45... bxc6
{[%clk 0:00:01.4]} 46. bxc6 {[%clk 0:00:07.7]} 46... Kh5 {[%clk 0:00:01.4]} 47.
c7 {[%clk 0:00:03.4]} 1-0

[Event "Late-Titled-Tuesday-Blitz-May-28-2024"]
[Site "Chess.com"]
[Date "2024.05.28"]
[Round "8"]
[White "neilbhav"]
[Black "JaackCamel"]
[Result "1-0"]
[WhiteElo "2402"]
[BlackElo "2234"]
[TimeControl "180+1"]
[EndTime "15:29:01 PDT"]
[Termination "neilbhav won on time"]

1. d4 {[%clk 0:03:00.9]} 1... d5 {[%clk 0:02:59.2]} 2. c4 {[%clk 0:03:01.2]}
2... e6 {[%clk 0:02:58.8]} 3. Nc3 {[%clk 0:03:01.6]} 3... c6 {[%clk 0:02:58.6]}
4. cxd5 {[%clk 0:02:59.9]} 4... exd5 {[%clk 0:02:57]} 5. Bf4 {[%clk 0:03:00.5]}
5... Bf5 {[%clk 0:02:55.9]} 6. e3 {[%clk 0:02:56.3]} 6... Nf6 {[%clk 0:02:55]}
7. Bd3 {[%clk 0:02:56]} 7... Bxd3 {[%clk 0:02:54.5]} 8. Qxd3 {[%clk 0:02:56.9]}
8... Be7 {[%clk 0:02:52.9]} 9. h3 {[%clk 0:02:55.2]} 9... O-O {[%clk 0:02:52.4]}
10. Nf3 {[%clk 0:02:55.7]} 10... Nbd7 {[%clk 0:02:52.1]} 11. O-O {[%clk
0:02:56.1]} 11... a5 {[%clk 0:02:51.9]} 12. a3 {[%clk 0:02:55.8]} 12... Re8
{[%clk 0:02:51.5]} 13. Rfe1 {[%clk 0:02:52.4]} 13... h6 {[%clk 0:02:51.1]} 14.
Rad1 {[%clk 0:02:48.5]} 14... Nb6 {[%clk 0:02:50.6]} 15. Bh2 {[%clk 0:02:24.6]}
15... Nc4 {[%clk 0:02:48.1]} 16. Qc2 {[%clk 0:02:23.6]} 16... Nd6 {[%clk
0:02:47.3]} 17. Ne5 {[%clk 0:02:20.4]} 17... Nfe4 {[%clk 0:02:44.7]} 18. Na4
{[%clk 0:02:18]} 18... Bf6 {[%clk 0:02:39.6]} 19. Nc5 {[%clk 0:02:15.1]} 19...
Nxc5 {[%clk 0:02:35.5]} 20. Qxc5 {[%clk 0:02:00.2]} 20... Bxe5 {[%clk
0:02:29.1]} 21. dxe5 {[%clk 0:02:00.2]} 21... Ne4 {[%clk 0:02:20.9]} 22. Qd4
{[%clk 0:01:58.8]} 22... Qc8 {[%clk 0:02:03.5]} 23. f3 {[%clk 0:01:54.5]} 23...
Ng5 {[%clk 0:02:01]} 24. h4 {[%clk 0:01:52.5]} 24... Ne6 {[%clk 0:02:00.4]} 25.
Qc3 {[%clk 0:01:45.9]} 25... Qd8 {[%clk 0:01:56.3]} 26. Bg3 {[%clk 0:01:43.8]}
26... Qb6 {[%clk 0:01:55.3]} 27. Bf2 {[%clk 0:01:43]} 27... Qa6 {[%clk
0:01:50.7]} 28. g3 {[%clk 0:01:32.9]} 28... Qb5 {[%clk 0:01:48.1]} 29. Kg2
{[%clk 0:01:30.9]} 29... Qa6 {[%clk 0:01:42.5]} 30. g4 {[%clk 0:01:29.7]} 30...
Rad8 {[%clk 0:01:31.9]} 31. f4 {[%clk 0:01:28.8]} 31... a4 {[%clk 0:01:30]} 32.
g5 {[%clk 0:01:22.9]} 32... Qb5 {[%clk 0:01:06.4]} 33. gxh6 {[%clk 0:01:21.1]}
33... gxh6 {[%clk 0:01:05.1]} 34. Rg1 {[%clk 0:01:18.9]} 34... Kh8 {[%clk
0:00:54.4]} 35. f5 {[%clk 0:01:17.6]} 35... Rg8+ {[%clk 0:00:53.5]} 36. Kh2
{[%clk 0:01:16.7]} 36... Qe2 {[%clk 0:00:42.5]} 37. Qd2 {[%clk 0:00:58.8]} 37...
Qxd2 {[%clk 0:00:39.3]} 38. Rxd2 {[%clk 0:00:59]} 38... Nc5 {[%clk 0:00:33]} 39.
Rd4 {[%clk 0:00:53.3]} 39... Ne4 {[%clk 0:00:32.3]} 40. Be1 {[%clk 0:00:53.1]}
40... b5 {[%clk 0:00:29]} 41. Ba5 {[%clk 0:00:37.4]} 41... Rd7 {[%clk 0:00:24]}
42. Rxg8+ {[%clk 0:00:35.6]} 42... Kxg8 {[%clk 0:00:23.9]} 43. Rd1 {[%clk
0:00:36.1]} 43... c5 {[%clk 0:00:18.1]} 44. Kg2 {[%clk 0:00:31.9]} 44... Kf8
{[%clk 0:00:17]} 45. Kf3 {[%clk 0:00:32.2]} 45... Ke7 {[%clk 0:00:12.9]} 46. Kf4
{[%clk 0:00:31.1]} 46... Nf2 {[%clk 0:00:10.2]} 47. Rd2 {[%clk 0:00:25.4]} 47...
Ne4 {[%clk 0:00:08.4]} 48. Rg2 {[%clk 0:00:25]} 48... Rb7 {[%clk 0:00:04.4]} 49.
Rg8 {[%clk 0:00:16.8]} 49... b4 {[%clk 0:00:04.3]} 50. Bd8+ {[%clk 0:00:15.4]}
50... Kd7 {[%clk 0:00:03.8]} 51. Bf6 {[%clk 0:00:12.1]} 1-0

[Event "Late-Titled-Tuesday-Blitz-May-28-2024"]
[Site "Chess.com"]
[Date "2024.05.28"]
[Round "8"]
[White "Iuckyducky"]
[Black "Juliana_Figueira"]
[Result "1-0"]
[WhiteElo "2243"]
[BlackElo "1967"]
[TimeControl "180+1"]
[EndTime "15:29:07 PDT"]
[Termination "Iuckyducky won by checkmate"]

1. e4 {[%clk 0:02:47.4]} 1... c5 {[%clk 0:02:58.8]} 2. c3 {[%clk 0:02:46.2]}
2... d5 {[%clk 0:02:58.7]} 3. exd5 {[%clk 0:02:45.8]} 3... Qxd5 {[%clk
0:02:59.6]} 4. d4 {[%clk 0:02:46.4]} 4... Nc6 {[%clk 0:02:58.6]} 5. Nf3 {[%clk
0:02:44.8]} 5... Nf6 {[%clk 0:02:58.3]} 6. Na3 {[%clk 0:02:43.6]} 6... cxd4
{[%clk 0:02:56.2]} 7. Bc4 {[%clk 0:02:39.5]} 7... Qd7 {[%clk 0:02:54.5]} 8. cxd4
{[%clk 0:02:31.4]} 8... e6 {[%clk 0:02:53.7]} 9. O-O {[%clk 0:02:31]} 9... Be7
{[%clk 0:02:47.8]} 10. Bf4 {[%clk 0:02:31.3]} 10... a6 {[%clk 0:02:40.2]} 11.
Ne5 {[%clk 0:02:09.6]} 11... Nxe5 {[%clk 0:02:38.7]} 12. dxe5 {[%clk 0:02:10]}
12... Nd5 {[%clk 0:02:31.1]} 13. Bg3 {[%clk 0:02:02.3]} 13... O-O {[%clk
0:02:28.7]} 14. Qg4 {[%clk 0:02:00.8]} 14... b5 {[%clk 0:02:22.7]} 15. Bb3
{[%clk 0:01:58]} 15... Bb7 {[%clk 0:02:13.3]} 16. Rfd1 {[%clk 0:01:58.4]} 16...
Qe8 {[%clk 0:01:49.6]} 17. h4 {[%clk 0:01:54.1]} 17... a5 {[%clk 0:01:44]} 18.
h5 {[%clk 0:01:48.8]} 18... Kh8 {[%clk 0:01:41.3]} 19. Rac1 {[%clk 0:01:39.9]}
19... a4 {[%clk 0:01:24.2]} 20. Bc2 {[%clk 0:01:38.4]} 20... Rc8 {[%clk
0:01:15.3]} 21. Qe4 {[%clk 0:01:20.6]} 21... g6 {[%clk 0:01:12.2]} 22. hxg6
{[%clk 0:01:18.1]} 22... fxg6 {[%clk 0:01:10.5]} 23. Qg4 {[%clk 0:01:08.7]}
23... Bc5 {[%clk 0:00:50.2]} 24. Bd3 {[%clk 0:00:46]} 24... Ba6 {[%clk 0:00:31]}
25. Bh4 {[%clk 0:00:28]} 25... Qf7 {[%clk 0:00:23.8]} 26. Qg3 {[%clk 0:00:13.8]}
26... Nf4 {[%clk 0:00:07.2]} 27. Bf6+ {[%clk 0:00:11]} 27... Kg8 {[%clk
0:00:06.5]} 28. Bxb5 {[%clk 0:00:06.9]} 28... Nh5 {[%clk 0:00:05]} 29. Qh4
{[%clk 0:00:03.6]} 29... Bxb5 {[%clk 0:00:05.2]} 30. Nxb5 {[%clk 0:00:03.6]}
30... Nxf6 {[%clk 0:00:04.2]} 31. exf6 {[%clk 0:00:04.5]} 31... Qxf6 {[%clk
0:00:04.5]} 32. Qxf6 {[%clk 0:00:04.7]} 32... Rxf6 {[%clk 0:00:05.1]} 33. Nd6
{[%clk 0:00:04]} 33... Rc6 {[%clk 0:00:03.3]} 34. Ne4 {[%clk 0:00:03.9]} 34...
Rf5 {[%clk 0:00:02.7]} 35. Rd2 {[%clk 0:00:01]} 35... Kf7 {[%clk 0:00:03.2]} 36.
Rdc2 {[%clk 0:00:01.3]} 36... Rd5 {[%clk 0:00:03.3]} 37. Rxc5 {[%clk 0:00:01.5]}
37... Rdxc5 {[%clk 0:00:03.1]} 38. Rxc5 {[%clk 0:00:02.4]} 38... Rxc5 {[%clk
0:00:03.3]} 39. Nxc5 {[%clk 0:00:02.4]} 39... Kf6 {[%clk 0:00:03.4]} 40. Nxa4
{[%clk 0:00:02.9]} 40... Ke5 {[%clk 0:00:04.1]} 41. Nc3 {[%clk 0:00:03.5]} 41...
Kd4 {[%clk 0:00:03.9]} 42. a4 {[%clk 0:00:04.4]} 42... Kc5 {[%clk 0:00:04.1]}
43. Kf1 {[%clk 0:00:03.9]} 43... Kb6 {[%clk 0:00:05]} 44. Ke2 {[%clk 0:00:04.4]}
44... Ka5 {[%clk 0:00:05.5]} 45. Kd3 {[%clk 0:00:04.9]} 45... Kb4 {[%clk
0:00:06.3]} 46. Ke4 {[%clk 0:00:04.4]} 46... e5 {[%clk 0:00:06.6]} 47. Kxe5
{[%clk 0:00:04.7]} 47... Ka5 {[%clk 0:00:06.6]} 48. Kf6 {[%clk 0:00:05.2]} 48...
h5 {[%clk 0:00:06.8]} 49. Kxg6 {[%clk 0:00:05.5]} 49... h4 {[%clk 0:00:07.7]}
50. Kh5 {[%clk 0:00:05.7]} 50... Kb4 {[%clk 0:00:08.1]} 51. Kxh4 {[%clk
0:00:05.7]} 51... Ka5 {[%clk 0:00:09]} 52. g4 {[%clk 0:00:06.2]} 52... Kb4
{[%clk 0:00:09.9]} 53. g5 {[%clk 0:00:06.9]} 53... Ka5 {[%clk 0:00:09.8]} 54. g6
{[%clk 0:00:07.6]} 54... Kb4 {[%clk 0:00:10.5]} 55. g7 {[%clk 0:00:08.4]} 55...
Ka5 {[%clk 0:00:11.1]} 56. g8=Q {[%clk 0:00:09.1]} 56... Kb4 {[%clk 0:00:11.4]}
57. Qb8+ {[%clk 0:00:09.7]} 57... Ka5 {[%clk 0:00:11.8]} 58. Qb5# {[%clk
0:00:09.7]} 1-0